[Event "Bundesturnier Hauptturnier 1 2024"]
[Site "Olten"]
[Date "2024.05.10"]
[Round "3.5"]
[White "Palmonella, Valentin"]
[Black "Gryshko, Vitalii"]
[Result "0-1"]
[ECO "B28"]
[WhiteElo "2124"]
[BlackElo "2316"]
[Annotator "TA"]
[PlyCount "76"]
[EventDate "2024.05.09"]
[EventType "tourn"]
[EventCountry "SUI"]
[SourceTitle "playchess.com"]
[Source "ChessBase"]
[SourceQuality "1"]
[TimeControl "5400+30"]

{[%evp 10,76,35,35,62,61,54,50,84,40,39,14,34,8,91,-175,-159,-155,-135,-139,-29,-36,-39,-125,-126,-168,-162,-156,-79,-330,-330,-383,-376,-370,-368,-370,-359,-375,-308,-264,-202,-606,-583,-579,-308,-298,-261,-466,-350,-727,-556,-560,-523,-649,-592,-727,-714,-1762,-5343,-5343,-5327,-4994,-647,-646,-623,-647,-646,-645,-637]} 1. e4 {[%emt 0:00:03][%cal Be2e4,Be4e5][%mdl 32]} c5 {[%emt 0:00:05]} 2. Nf3 {[%emt 0:00:05]} a6 {[%emt 0:00:05]} 3. c3 {[%emt 0:00:47]} Nf6 {[%emt 0:05:38]} 4. e5 {[%emt 0:02:54]} Nd5 {[%emt 0:00:07]} 5. d4 {[%emt 0:11:33]} cxd4 {[%emt 0:03:30]} 6. cxd4 {[%emt 0:02:27]} b5 {[%emt 0:04:07] Dodges Bc4} 7. Ng5 {[%emt 0:11:53]} e6 {[%emt 0:09:28] [#] aiming for ...Bb4+.} 8. Nc3 {[%emt 0:18:09]} d6 {[%emt 0:19:58] White is slightly better.} 9. Qf3 {[%emt 0:10:12]} (9. Nxd5 {simplifies} exd5 10. e6 Bxe6 11. Nxe6 fxe6 12. Be2) 9... Ra7 {[%emt 0:01:05]} 10. Nxd5 {[%emt 0:01:16]} (10. Nxb5 $5 Rd7 11. Nxd6+ Bxd6 12. exd6 $16) 10... exd5 {[%emt 0:00:38]} 11. Qxd5 {[%emt 0:00:42]} Rd7 {[%emt 0:08:31]} (11... Rc7 $11 {remains equal.}) 12. Be3 $2 {[%emt 0:08:26][%mdl 8192]} (12. e6 $16 {[%cal Re6f7] stays on course.} fxe6 13. Qb3 (13. Nxe6 $2 Re7 $19)) 12... Bb7 $19 {[%emt 0:01:04]} 13. Qb3 {[%emt 0:00:06]} dxe5 {[%emt 0:00:34]} 14. dxe5 {[%emt 0:03:54] [#]} Qa5+ {[%emt 0:06:47]} (14... Bd5 $1 $17 {[%cal Rd5b3]} 15. Qc2 Bb4+ 16. Ke2 Rc7) 15. Ke2 $1 $11 {[%emt 0:00:32]} Bd5 $1 {[%emt 0:01:37][%mdl 1024] Black has compensation.} 16. Qc3 {[%emt 0:00:42]} ({Better is} 16. Qc2 $1 $15) 16... b4 $36 {[%emt 0:07:07][%mdl 2048] White is under strong pressure.} 17. Qc8+ {[%emt 0:07:15]} Rd8 {[%emt 0:00:11]} 18. Qc1 {[%emt 0:00:06]} Be7 {[%emt 0:03:21]} (18... Bxa2 $2 19. b3 $18) (18... Nd7 $142 {[%cal Of8e7] ...Be7! would now be deadly.} 19. f4 f6 (19... Bxa2 $2 20. Kf2 $18) 20. exf6 Nxf6 (20... Bxa2 $2 21. f7+ Ke7 22. Kf2 $18) (20... gxf6 21. Nf3 $14)) 19. Nh3 $2 {[%emt 0:01:21][%mdl 8192]} (19. f4 $17 {was called for.}) 19... O-O $19 {[%emt 0:02:42]} (19... Bxa2 20. b3 $14) 20. f3 {[%emt 0:03:50]} Rc8 {[%emt 0:01:26]} ({Weaker is} 20... Bxa2 21. b3 Rc8 22. Qb2 $19) 21. Qb1 {[%emt 0:00:10]} Nc6 {[%emt 0:04:45]} 22. Kf2 {[%emt 0:02:16]} Nxe5 {[%emt 0:04:39]} 23. Nf4 {[%emt 0:01:03]} Bb7 {[%emt 0:01:05] ...Bc5 is the strong threat.} 24. Bd3 {[%emt 0:02:51]} Nxd3+ {[%emt 0:00:54]} 25. Nxd3 $2 {[%emt 0:00:18]} (25. Qxd3 Qe5 26. Rae1) 25... Bh4+ {[%emt 0:00:59]} 26. g3 {[%emt 0:00:40]} Bf6 {[%emt 0:00:54]} 27. Nf4 {[%emt 0:01:18] Inhibits Qh5.} Qa4 {[%emt 0:01:29] Hoping for ...Rc2+.} 28. Rd1 $2 {[%emt 0:01:57]} (28. Rc1) 28... Bxb2 {[%emt 0:00:50] A strong pair of Bishops.} 29. Rd2 {[%emt 0:02:41] Wards off Rc2} (29. Qxb2 Rc2+ 30. Qxc2 Qxc2+ 31. Rd2) 29... Bxa1 {[%emt 0:00:08] Black is clearly winning.} 30. Qxa1 {[%emt 0:00:10]} Rc2 {[%emt 0:00:22]} 31. Nh5 {[%emt 0:01:48][%csl Gh5][%cal Ra1g7]} f6 {[%emt 0:01:56] Strongly threatening ...Rd8.} 32. Qd1 {[%emt 0:00:43]} Rfc8 {[%emt 0:00:52] Threatens to win with ...Rxd2+.} 33. Ke1 {[%emt 0:01:16]} Rc1 {[%emt 0:00:48][%cal Oa4e8] ( -> ...Qe8!)} ({And not} 33... Qxa2 34. Rd8+ Rxd8 35. Qxd8+ Kf7 36. Qd7+ Kf8 37. Qxg7+ (37. Qxb7 $2 {gets mated.} Qb1+) 37... Ke8 38. Nxf6+ Kd8 39. Qd7#) 34. Rd8+ {[%emt 0:00:23]} Rxd8 {[%emt 0:00:03]} 35. Qxc1 {[%emt 0:00:10]} Qc6 {[%emt 0:01:47]} (35... b3 $142 36. axb3 Qa5+ (36... Qxb3 $2 37. Nf4 $19) 37. b4 Qxh5 38. Qc4+ Kh8) 36. Qxc6 {[%emt 0:02:05]} Bxc6 {[%emt 0:00:03]} 37. Bb6 {[%emt 0:00:04]} Rd3 {[%emt 0:00:09][%cal Od3a3] And now ...Ra3! would win.} 38. Ba5 {[%emt 0:00:22]} Rd5 {[%emt 0:00:03] Weighted Error Value: White=0.92/Black=0.61.  Loses game:     	White=2     	---        Mistake:       	White=4     	Black=3      Inaccurate:     	White=3     	Black=1      OK:         	White=7     	Black=7      Best:        	White=1     	Black=3      Strong:       	White=1     	Black=1} 0-1

[Event "Bundesturnier Hauptturnier 1 2024"]
[Site "Olten"]
[Date "2024.05.10"]
[Round "3.6"]
[White "Loetscher, Roland"]
[Black "Rotunno, Flavio"]
[Result "1/2-1/2"]
[ECO "A13"]
[WhiteElo "2384"]
[BlackElo "2105"]
[Annotator "TA"]
[PlyCount "60"]
[EventDate "2024.05.09"]
[EventType "tourn"]
[EventCountry "SUI"]
[SourceTitle "playchess.com"]
[Source "ChessBase"]
[SourceQuality "1"]
[TimeControl "5400+30"]

{[%evp 9,60,5,21,6,5,4,0,-1,0,0,0,0,0,0,0,0,3,-2,0,0,0,0,5,0,0,0,16,0,0,0,-1,-19,-24,-33,-31,-87,-81,-98,-106,-156,-154,-169,-160,-213,-45,-54,-49,-46,-56,-65,-47,-50,-31]} 1. c4 {[%emt 0:00:02]} Nf6 {[%emt 0:04:26]} 2. g3 {[%emt 0:00:12]} e6 {[%emt 0:00:05]} 3. Bg2 {[%emt 0:00:11]} d5 {[%emt 0:00:06]} 4. Nf3 {[%emt 0:00:08]} dxc4 {[%emt 0:00:06]} 5. Qa4+ {[%emt 0:00:18]} Bd7 {[%emt 0:00:05]} 6. Qxc4 {[%emt 0:00:10]} c5 {[%emt 0:00:05]} 7. Ne5 {[%emt 0:00:50]} Qc8 {[%emt 0:00:04]} 8. Nxd7 {[%emt 0:01:00] The position is equal.} Qxd7 {[%emt 0:00:05]} 9. Qc2 {[%emt 0:04:00]} Nc6 {[%emt 0:01:38]} 10. Nc3 {[%emt 0:00:39]} Be7 {[%emt 0:01:08]} 11. O-O {[%emt 0:00:57]} O-O {[%emt 0:00:17]} 12. d3 {[%emt 0:08:35]} Rac8 {[%emt 0:05:51]} 13. b3 {[%emt 0:02:12]} Rfd8 {[%emt 0:01:42]} 14. Bb2 {[%emt 0:01:56]} b6 {[%emt 0:08:30]} 15. Rac1 {[%emt 0:01:44]} Nd5 {[%emt 0:18:56]} 16. Nxd5 {[%emt 0:08:15]} exd5 {[%emt 0:00:17]} 17. e3 {[%emt 0:04:12]} Qe6 {[%emt 0:11:09]} 18. Rcd1 {[%emt 0:11:50]} Bf6 {[%emt 0:13:08]} 19. Bc1 {[%emt 0:01:35]} h6 {[%emt 0:08:50] White is weak on the dark squares} 20. f4 {[%emt 0:01:24]} a5 {[%emt 0:06:52]} 21. Kh1 {[%emt 0:01:13]} Nb4 {[%emt 0:01:10]} 22. Qb1 {[%emt 0:02:00] [#]} (22. Qe2 $15) 22... c4 $1 $17 {[%emt 0:01:46]} 23. dxc4 {[%emt 0:14:29]} dxc4 {[%emt 0:00:17] Hoping for ...Rxd1.} 24. bxc4 {[%emt 0:00:27]} ({White should play} 24. f5 Qe8 25. bxc4) 24... Rxd1 {[%emt 0:04:01]} ({And not} 24... Rxc4 25. Rxd8+ Bxd8 26. a3 $15) 25. Rxd1 {[%emt 0:00:05]} Qxc4 {[%emt 0:00:14][%cal Oc4e2] ...Qe2! would now be deadly.} ({Much less strong is} 25... Rxc4 26. a3 $15) 26. Ba3 {[%emt 0:07:06]} (26. Bd2 $17) 26... Qxa2 $2 {[%emt 0:04:58] [#]} (26... Nxa2 $19 {And now ...Nc3 would win.} 27. Rg1 b5) 27. Bxb4 $15 {[%emt 0:00:32] Black is slightly better.} Qxb1 {[%emt 0:00:05]} 28. Rxb1 {[%emt 0:00:08]} axb4 {[%emt 0:00:04]} 29. Bd5 {[%emt 0:01:30]} Bc3 {[%emt 0:02:15]} 30. Kg2 {[%emt 0:02:41]} Bd2 {[%emt 0:03:50] Weighted Error Value: White=0.11 (very precise) /Black=0.15 (very precise) .  Missed win:     	---       	Black=1      Mistake:       	White=3     	---        OK:         	White=7     	Black=8      Best:        	---       	Black=1      Strong:       	---       	Black=1} 1/2-1/2

[Event "Bundesturnier Hauptturnier 1 2024"]
[Site "Olten"]
[Date "2024.05.10"]
[Round "3.7"]
[White "Rohrer, Christophe"]
[Black "Menzi, Jonas"]
[Result "1/2-1/2"]
[ECO "C60"]
[WhiteElo "2240"]
[BlackElo "2063"]
[Annotator "RC"]
[PlyCount "88"]
[EventDate "2024.05.09"]
[EventType "tourn"]
[EventCountry "SUI"]
[SourceTitle "playchess.com"]
[Source "ChessBase"]
[SourceQuality "1"]
[TimeControl "5400+30"]

1. e4 {[%emt 0:00:04]} e5 {[%emt 0:00:07]} 2. Nf3 {[%emt 0:00:06]} Nc6 {[%emt 0:00:07]} 3. Bb5 {[%emt 0:00:06]} g6 {[%emt 0:00:10]} 4. c3 {[%emt 0:00:54]} a6 {[%emt 0:00:17]} 5. Ba4 {[%emt 0:00:13]} Bg7 {[%emt 0:00:16]} 6. O-O {[%emt 0:02:23]} Nge7 {[%emt 0:00:37]} 7. d4 {[%emt 0:00:23]} exd4 {[%emt 0:00:11]} 8. cxd4 {[%emt 0:00:05]} b5 {[%emt 0:00:15]} 9. Bc2 {[%emt 0:00:31]} O-O {[%emt 0:00:22]} 10. d5 {[%emt 0:00:47]} Na5 {[%emt 0:00:13]} 11. Bd2 {[%emt 0:08:00]} Nc4 {[%emt 0:00:07]} 12. Bc3 {[%emt 0:00:35]} Nxb2 {[%emt 0:00:24]} 13. Qe2 {[%emt 0:03:22]} Nc4 {[%emt 0:16:32]} 14. a4 {[%emt 0:08:40]} Rb8 {[%emt 0:02:52]} 15. axb5 {[%emt 0:09:28]} axb5 {[%emt 0:00:09]} 16. Bd3 {[%emt 0:02:17]} Bxc3 {[%emt 0:12:45]} 17. Nxc3 {[%emt 0:00:11]} b4 {[%emt 0:00:12]} 18. Bxc4 {[%emt 0:00:29]} bxc3 {[%emt 0:00:09]} 19. Qc2 {[%emt 0:02:53]} d6 {[%emt 0:10:12]} 20. Qxc3 {[%emt 0:01:25]} Bd7 {[%emt 0:00:30]} 21. Nd4 {[%emt 0:07:33]} Rb6 {[%emt 0:05:36]} 22. Rfc1 {[%emt 0:05:00]} c6 {[%emt 0:10:32]} 23. dxc6 {[%emt 0:01:57]} Nxc6 {[%emt 0:02:08]} 24. Bd5 {[%emt 0:01:44]} Ne7 {[%emt 0:14:23]} 25. Ra7 {[%emt 0:05:20]} Nxd5 {[%emt 0:07:51]} 26. exd5 {[%emt 0:00:04]} Rb8 {[%emt 0:00:27]} 27. h3 {[%emt 0:07:05]} Rc8 {[%emt 0:06:17]} 28. Nc6 {[%emt 0:01:10]} Bxc6 {[%emt 0:00:13]} 29. dxc6 {[%emt 0:00:04]} Rc7 {[%emt 0:01:43]} 30. Rb7 {[%emt 0:11:58]} Qc8 {[%emt 0:00:54]} 31. Rxc7 {[%emt 0:04:57]} Qxc7 {[%emt 0:00:01]} 32. Qc4 {[%emt 0:03:30]} Rc8 {[%emt 0:01:38]} 33. Rc3 {[%emt 0:01:33]} Re8 {[%emt 0:02:57]} 34. g3 {[%emt 0:00:52]} Rd8 {[%emt 0:02:25]} 35. Qd5 {[%emt 0:01:05]} Rc8 {[%emt 0:00:24]} 36. Kg2 {[%emt 0:00:19]} Qe7 {[%emt 0:01:26]} 37. Re3 {[%emt 0:00:37]} Qc7 {[%emt 0:00:45]} 38. Rf3 {[%emt 0:00:31]} Qe7 {[%emt 0:00:28]} 39. Re3 {[%emt 0:04:37]} Qc7 {[%emt 0:00:08]} 40. Rc3 {[%emt 0:00:16]} Qe7 {[%emt 0:00:24]} 41. Rf3 {[%emt 0:05:22]} Qe6 {[%emt 0:01:00]} 42. Qxe6 {[%emt 0:01:03]} fxe6 {[%emt 0:00:02]} 43. Rf6 {[%emt 0:00:05]} Rxc6 {[%emt 0:00:27]} 44. Rxe6 {[%emt 0:00:02]} Kf7 {[%emt 0:00:10]} 1/2-1/2

[Event "Bundesturnier Hauptturnier 1 2024"]
[Site "Olten"]
[Date "2024.05.10"]
[Round "3.8"]
[White "Sutter, Oliver"]
[Black "Deuber, Roman"]
[Result "1-0"]
[ECO "E57"]
[WhiteElo "2304"]
[BlackElo "2045"]
[Annotator "RC"]
[PlyCount "69"]
[EventDate "2024.05.09"]
[EventType "tourn"]
[EventCountry "SUI"]
[SourceTitle "playchess.com"]
[Source "ChessBase"]
[SourceQuality "1"]
[TimeControl "5400+30"]

1. d4 {[%emt 0:00:04]} Nf6 {[%emt 0:00:08]} 2. c4 {[%emt 0:00:08]} e6 {[%emt 0:00:24]} 3. Nc3 {[%emt 0:00:17]} Bb4 {[%emt 0:00:23]} 4. e3 {[%emt 0:00:06]} O-O {[%emt 0:00:29]} 5. Bd3 {[%emt 0:00:09]} c5 {[%emt 0:01:06]} 6. Nf3 {[%emt 0:00:11]} d5 {[%emt 0:01:13]} 7. O-O {[%emt 0:00:08]} dxc4 {[%emt 0:03:35]} 8. Bxc4 {[%emt 0:00:24]} cxd4 {[%emt 0:02:02]} 9. exd4 {[%emt 0:00:05]} b6 {[%emt 0:03:10]} 10. Bg5 {[%emt 0:01:17]} Bb7 {[%emt 0:02:28]} 11. Re1 {[%emt 0:00:14]} Nc6 {[%emt 0:08:53]} 12. Bd3 {[%emt 0:02:09]} Rc8 {[%emt 0:07:01]} 13. Bc2 {[%emt 0:02:39]} Be7 {[%emt 0:04:27]} 14. a3 {[%emt 0:01:04]} Re8 {[%emt 0:03:40]} 15. Qd3 {[%emt 0:00:19]} g6 {[%emt 0:01:44]} 16. h4 {[%emt 0:12:55]} Nd5 {[%emt 0:04:00]} 17. Nxd5 {[%emt 0:00:23]} Qxd5 {[%emt 0:02:50]} 18. Bb3 {[%emt 0:00:41]} Qd8 {[%emt 0:07:22]} 19. Ba2 {[%emt 0:17:13]} Bxg5 {[%emt 0:06:52]} 20. hxg5 {[%emt 0:00:29]} Ne7 {[%emt 0:02:36]} 21. Rad1 {[%emt 0:01:20]} Bxf3 {[%emt 0:12:07]} 22. Qxf3 {[%emt 0:00:53]} Nf5 {[%emt 0:00:00]} 23. d5 {[%emt 0:02:02]} e5 {[%emt 0:04:17]} 24. d6 {[%emt 0:01:08]} Qd7 {[%emt 0:06:01]} 25. Rd5 {[%emt 0:02:43]} Rc6 {[%emt 0:05:16]} 26. Rdxe5 {[%emt 0:04:19]} Rxe5 {[%emt 0:00:32]} 27. Rxe5 {[%emt 0:00:07]} Rc1+ {[%emt 0:03:05]} 28. Kh2 {[%emt 0:00:06]} Qxd6 {[%emt 0:01:37]} 29. Qd5 {[%emt 0:00:32]} Qxd5 {[%emt 0:02:11]} 30. Rxd5 {[%emt 0:00:48]} Rc2 {[%emt 0:00:05]} 31. Rd8+ {[%emt 0:01:56]} Kg7 {[%emt 0:00:01]} 32. Rd7 {[%emt 0:00:09]} Rxb2 {[%emt 0:00:26]} 33. Rxf7+ {[%emt 0:00:39]} Kg8 {[%emt 0:01:58]} 34. Bd5 {[%emt 0:00:32]} Rd2 {[%emt 0:01:52]} 35. Rxf5+ {[%emt 0:00:18]} 1-0

[Event "Bundesturnier Hauptturnier 1 2024"]
[Site "Olten"]
[Date "2024.05.10"]
[Round "3.9"]
[White "Hirzel, Cedric"]
[Black "Gautier, Anand"]
[Result "1-0"]
[ECO "E73"]
[WhiteElo "2086"]
[BlackElo "2274"]
[Annotator "RC"]
[PlyCount "75"]
[EventDate "2024.05.09"]
[EventType "tourn"]
[EventCountry "SUI"]
[SourceTitle "playchess.com"]
[Source "ChessBase"]
[SourceQuality "1"]
[TimeControl "5400+30"]

1. d4 {[%emt 0:00:38]} Nf6 {[%emt 0:00:03]} 2. c4 {[%emt 0:00:07]} g6 {[%emt 0:00:03]} 3. Nc3 {[%emt 0:00:07]} Bg7 {[%emt 0:00:04]} 4. e4 {[%emt 0:00:07]} d6 {[%emt 0:00:03]} 5. Be2 {[%emt 0:00:09]} O-O {[%emt 0:00:06]} 6. Bg5 {[%emt 0:00:04]} Nbd7 {[%emt 0:03:22]} 7. Qd2 {[%emt 0:02:17]} e5 {[%emt 0:00:58]} 8. d5 {[%emt 0:04:34]} a5 {[%emt 0:00:55]} 9. h4 {[%emt 0:06:08]} Nc5 {[%emt 0:02:52]} 10. f3 {[%emt 0:00:46]} Bd7 {[%emt 0:03:05]} 11. g4 {[%emt 0:03:39]} a4 {[%emt 0:04:28]} 12. O-O-O {[%emt 0:01:40]} Ra6 {[%emt 0:05:24]} 13. h5 {[%emt 0:09:13]} Qe7 {[%emt 0:03:31]} 14. Nh3 {[%emt 0:07:59]} Rfa8 {[%emt 0:19:00]} 15. Kc2 {[%emt 0:02:35]} Qf8 {[%emt 0:34:26]} 16. Nf2 {[%emt 0:04:32]} Rb6 {[%emt 0:01:43]} 17. Rh2 {[%emt 0:04:12]} h6 {[%emt 0:01:14]} 18. Bxf6 {[%emt 0:15:18]} Bxf6 {[%emt 0:00:04]} 19. hxg6 {[%emt 0:00:23]} Bg5 {[%emt 0:00:40]} 20. gxf7+ {[%emt 0:00:25]} Qxf7 {[%emt 0:00:06]} 21. Qe1 {[%emt 0:00:11]} Nb3 {[%emt 0:02:09]} 22. Nh3 {[%emt 0:06:16]} Nd4+ {[%emt 0:02:18]} 23. Kb1 {[%emt 0:01:40]} a3 {[%emt 0:03:36]} 24. b3 {[%emt 0:00:09]} Nxb3 {[%emt 0:03:38]} 25. axb3 {[%emt 0:00:19]} Rxb3+ {[%emt 0:00:01]} 26. Kc2 {[%emt 0:03:28]} Rb2+ {[%emt 0:01:19]} 27. Kd3 {[%emt 0:00:05]} a2 {[%emt 0:05:13]} 28. Nxg5 {[%emt 0:01:24]} Qf4 {[%emt 0:01:34]} 29. Rxh6 {[%emt 0:04:26]} a1=Q {[%emt 0:02:22]} 30. Rg6+ {[%emt 0:00:16]} Kf8 {[%emt 0:00:02]} 31. Rf6+ {[%emt 0:04:03]} Qxf6 {[%emt 0:00:12]} 32. Nh7+ {[%emt 0:00:04]} Ke7 {[%emt 0:01:01]} 33. Rxa1 {[%emt 0:00:39]} Qh8 {[%emt 0:00:48]} 34. Qh4+ {[%emt 0:02:40]} Kf7 {[%emt 0:00:02]} 35. Rxa8 {[%emt 0:03:07]} Qxa8 {[%emt 0:00:03]} 36. Qf6+ {[%emt 0:00:06]} Kg8 {[%emt 0:00:02]} 37. Qg6+ {[%emt 0:00:06]} Kh8 {[%emt 0:00:02]} 38. Ng5 {[%emt 0:00:17]} 1-0

[Event "Bundesturnier Hauptturnier 1 2024"]
[Site "Olten"]
[Date "2024.05.10"]
[Round "3.10"]
[White "Gantner, Matthias"]
[Black "Toenz, Arthur"]
[Result "1-0"]
[ECO "B12"]
[WhiteElo "2237"]
[BlackElo "2046"]
[Annotator "RC"]
[PlyCount "53"]
[EventDate "2024.05.09"]
[EventType "tourn"]
[EventCountry "SUI"]
[SourceTitle "playchess.com"]
[Source "ChessBase"]
[SourceQuality "1"]
[TimeControl "5400+30"]

1. e4 {[%emt 0:00:02]} c6 {[%emt 0:00:12]} 2. d4 {[%emt 0:00:09]} d5 {[%emt 0:00:05]} 3. e5 {[%emt 0:00:13]} c5 {[%emt 0:00:06]} 4. dxc5 {[%emt 0:00:10]} e6 {[%emt 0:00:07]} 5. a3 {[%emt 0:01:08]} Bxc5 {[%emt 0:00:06]} 6. Nf3 {[%emt 0:02:42]} Nd7 {[%emt 0:02:56]} 7. Bd3 {[%emt 0:02:45]} f6 {[%emt 0:04:16]} 8. exf6 {[%emt 0:26:47]} Ngxf6 {[%emt 0:08:16]} 9. O-O {[%emt 0:00:24]} O-O {[%emt 0:09:35]} 10. c4 {[%emt 0:05:39]} e5 {[%emt 0:03:40]} 11. Bf5 {[%emt 0:11:00]} dxc4 {[%emt 0:19:45]} 12. Be6+ {[%emt 0:09:44]} Kh8 {[%emt 0:00:07]} 13. Bxc4 {[%emt 0:00:15]} Ng4 {[%emt 0:06:42]} 14. Qe2 {[%emt 0:11:14]} Ndf6 {[%emt 0:16:14]} 15. Nc3 {[%emt 0:00:52]} Nxf2 {[%emt 0:01:58]} 16. Rxf2 {[%emt 0:14:53]} Bxf2+ {[%emt 0:04:53]} 17. Qxf2 {[%emt 0:01:10]} Ng4 {[%emt 0:00:51]} 18. Qc5 {[%emt 0:03:13]} b6 {[%emt 0:07:20]} 19. Qd5 {[%emt 0:00:23]} Qe7 {[%emt 0:01:20]} 20. Bg5 {[%emt 0:00:34]} Qb7 {[%emt 0:03:13]} 21. h3 {[%emt 0:00:26]} Nf6 {[%emt 0:01:31]} 22. Qxb7 {[%emt 0:00:11]} Bxb7 {[%emt 0:00:05]} 23. Nxe5 {[%emt 0:00:06]} Rac8 {[%emt 0:02:57]} 24. Nf7+ {[%emt 0:00:28]} Kg8 {[%emt 0:00:12]} 25. Nd6+ {[%emt 0:00:06]} Kh8 {[%emt 0:01:24]} 26. Nxc8 {[%emt 0:00:08]} Rxc8 {[%emt 0:00:05]} 27. Bb3 {[%emt 0:00:18]} 1-0

[Event "Bundesturnier Hauptturnier 1 2024"]
[Site "Olten"]
[Date "2024.05.10"]
[Round "3.11"]
[White "Buehler, Michael"]
[Black "Prunescu, Claudiu"]
[Result "1/2-1/2"]
[ECO "D22"]
[WhiteElo "2043"]
[BlackElo "2249"]
[Annotator "ChessBase"]
[PlyCount "109"]
[EventDate "2024.05.09"]
[EventType "tourn"]
[EventCountry "SUI"]
[SourceTitle "playchess.com"]
[Source "ChessBase"]
[SourceQuality "1"]
[TimeControl "5400+30"]

1. d4 {[%emt 0:00:04]} d5 {[%emt 0:03:42]} 2. c4 {[%emt 0:00:06]} dxc4 {[%emt 0:00:15]} 3. Nf3 {[%emt 0:00:19]} Nf6 {[%emt 0:00:29]} 4. e3 {[%emt 0:00:08]} Bg4 {[%emt 0:01:49]} 5. Bxc4 {[%emt 0:00:19]} e6 {[%emt 0:04:08]} 6. O-O {[%emt 0:06:19]} Bd6 7. Nc3 {[%emt 0:02:26]} Nc6 {[%emt 0:04:24]} 8. Be2 {[%emt 0:00:45]} O-O {[%emt 0:05:48]} 9. Qb3 {[%emt 0:10:23]} a6 {[%emt 0:01:57]} 10. Rd1 {[%emt 0:08:21]} Qe7 {[%emt 0:21:44]} 11. Bd2 {[%emt 0:11:35]} h6 {[%emt 0:03:41]} 12. Rac1 {[%emt 0:06:11]} Rab8 {[%emt 0:10:30]} 13. a3 {[%emt 0:05:59]} Rfd8 14. Qc2 {[%emt 0:05:25]} Re8 15. Na4 {[%emt 0:07:21]} e5 16. dxe5 {[%emt 0:03:34]} Nxe5 17. Nd4 {[%emt 0:04:38]} Bxe2 {[%emt 0:05:44]} 18. Nxe2 {[%emt 0:00:00]} Qe6 {[%emt 0:00:30]} 19. Bb4 {[%emt 0:00:00]} Bxb4 {[%emt 0:00:30]} 20. axb4 {[%emt 0:00:00]} c6 {[%emt 0:00:30]} 21. Nd4 {[%emt 0:00:00]} Qg4 {[%emt 0:06:50]} 22. h3 {[%emt 0:05:57]} Qe4 {[%emt 0:05:34]} 23. Qxe4 {[%emt 0:02:36]} Nxe4 {[%emt 0:00:08]} 24. f3 {[%emt 0:03:04]} Nf6 {[%emt 0:01:07]} 25. e4 {[%emt 0:00:14]} g6 {[%emt 0:02:47]} 26. Nc5 {[%emt 0:00:59]} Nh5 {[%emt 0:02:53]} 27. Kf2 {[%emt 0:01:51]} Re7 {[%emt 0:04:05]} 28. Ne2 {[%emt 0:01:58]} g5 {[%emt 0:00:42]} 29. g3 {[%emt 0:01:17]} Ng6 {[%emt 0:02:37]} 30. Rd6 {[%emt 0:01:50]} Kh7 {[%emt 0:01:48]} 31. Rcd1 {[%emt 0:01:55]} Ne5 {[%emt 0:02:43]} 32. b3 {[%emt 0:00:32]} Rbe8 {[%emt 0:01:51]} 33. Rd8 {[%emt 0:06:45]} Ng7 {[%emt 0:02:03]} 34. Rxe8 {[%emt 0:00:14]} Nxe8 {[%emt 0:01:29]} 35. Rd8 {[%emt 0:00:41]} Kg7 {[%emt 0:01:31]} 36. Nd4 {[%emt 0:00:17]} Kf8 {[%emt 0:03:40]} 37. Nf5 {[%emt 0:00:17]} b6 {[%emt 0:00:16]} 38. Na4 {[%emt 0:03:43]} Rd7 {[%emt 0:01:02]} 39. Rxd7 {[%emt 0:00:27]} Nxd7 {[%emt 0:00:03]} 40. Nxh6 {[%emt 0:00:13]} Nd6 {[%emt 0:00:26]} 41. Ke3 {[%emt 0:00:22]} b5 {[%emt 0:00:35]} 42. Nc5 {[%emt 0:00:55]} Nxc5 {[%emt 0:00:09]} 43. bxc5 {[%emt 0:00:02]} Nb7 {[%emt 0:00:08]} 44. Kd4 {[%emt 0:00:38]} a5 {[%emt 0:00:19]} 45. Ng4 {[%emt 0:00:53]} Nd8 {[%emt 0:00:36]} 46. Ne5 {[%emt 0:00:48]} f6 {[%emt 0:01:03]} 47. Nd3 {[%emt 0:00:11]} Ne6+ {[%emt 0:00:18]} 48. Kc3 {[%emt 0:00:29]} Kf7 {[%emt 0:00:48]} 49. f4 {[%emt 0:00:07]} gxf4 {[%emt 0:00:27]} 50. gxf4 {[%emt 0:00:02]} Kg7 {[%emt 0:00:21]} 51. b4 {[%emt 0:00:47]} a4 {[%emt 0:00:23]} 52. h4 {[%emt 0:00:14]} Kh6 {[%emt 0:00:48]} 53. f5 {[%emt 0:00:31]} Nd8 {[%emt 0:00:56]} 54. Nf4 {[%emt 0:00:37]} Nf7 {[%emt 0:00:36]} 55. Kb2 {[%emt 0:01:52]} 1/2-1/2